[Event "Early-Titled-Tuesday-Blitz-September-05-2023"]
[Site "Chess.com"]
[Date "2023.09.05"]
[Round "1"]
[White "Arteler"]
[Black "Hamisandwich"]
[Result "1-0"]
[WhiteElo "2382"]
[BlackElo "2651"]
[TimeControl "180+1"]
[EndTime "8:08:01 PDT"]
[Termination "Arteler won by resignation"]

1. e4 {[%clk 0:02:57.2]} 1... e5 {[%clk 0:02:54]} 2. Nf3 {[%clk 0:02:57.2]} 2...
d6 {[%clk 0:02:54.2]} 3. d4 {[%clk 0:02:44.4]} 3... exd4 {[%clk 0:02:54.3]} 4.
Nxd4 {[%clk 0:02:45.3]} 4... Nf6 {[%clk 0:02:54.7]} 5. Nc3 {[%clk 0:02:45.6]}
5... Be7 {[%clk 0:02:55.5]} 6. Be2 {[%clk 0:02:44]} 6... O-O {[%clk 0:02:54.8]}
7. O-O {[%clk 0:02:44.2]} 7... Nc6 {[%clk 0:02:55.3]} 8. Be3 {[%clk 0:02:44.4]}
8... Re8 {[%clk 0:02:53.9]} 9. h3 {[%clk 0:02:44.4]} 9... Bf8 {[%clk 0:02:52.9]}
10. Nxc6 {[%clk 0:02:21.5]} 10... bxc6 {[%clk 0:02:53.8]} 11. Bf3 {[%clk
0:02:18.2]} 11... Nd7 {[%clk 0:02:39.1]} 12. Be2 {[%clk 0:02:06.4]} 12... Ne5
{[%clk 0:02:26.5]} 13. f4 {[%clk 0:02:05.6]} 13... Nd7 {[%clk 0:02:19.9]} 14.
Bf3 {[%clk 0:02:05.4]} 14... Bb7 {[%clk 0:02:14.3]} 15. Qd2 {[%clk 0:01:53.6]}
15... c5 {[%clk 0:01:59.4]} 16. Rfe1 {[%clk 0:01:52]} 16... Nb6 {[%clk
0:01:39.3]} 17. b3 {[%clk 0:01:51.2]} 17... g6 {[%clk 0:01:31.3]} 18. Rad1
{[%clk 0:01:50.4]} 18... Bg7 {[%clk 0:01:26.4]} 19. Bf2 {[%clk 0:01:50.3]} 19...
Bc6 {[%clk 0:01:16.6]} 20. Qd3 {[%clk 0:01:39.9]} 20... Qc8 {[%clk 0:00:59]} 21.
a4 {[%clk 0:01:26.4]} 21... a5 {[%clk 0:00:49.8]} 22. Nd5 {[%clk 0:00:47.5]}
22... Nxd5 {[%clk 0:00:23.4]} 23. exd5 {[%clk 0:00:48.4]} 23... Bd7 {[%clk
0:00:24.3]} 24. c4 {[%clk 0:00:35.4]} 24... Qb7 {[%clk 0:00:22.6]} 25. Rxe8+
{[%clk 0:00:33.4]} 25... Rxe8 {[%clk 0:00:23.5]} 26. Re1 {[%clk 0:00:33.9]}
26... Rb8 {[%clk 0:00:23.8]} 27. Bd1 {[%clk 0:00:23.7]} 27... Bf5 {[%clk
0:00:22.5]} 28. Qd2 {[%clk 0:00:21.2]} 28... Qb6 {[%clk 0:00:15.5]} 29. g4
{[%clk 0:00:19.8]} 29... Bd7 {[%clk 0:00:15.3]} 30. Re7 {[%clk 0:00:20.1]} 30...
Be8 {[%clk 0:00:12.1]} 31. Qe1 {[%clk 0:00:18.2]} 31... Kf8 {[%clk 0:00:11.2]}
32. f5 {[%clk 0:00:18.5]} 32... Bf6 {[%clk 0:00:08.7]} 33. Re4 {[%clk
0:00:13.5]} 33... Bd7 {[%clk 0:00:08.6]} 34. fxg6 {[%clk 0:00:13.2]} 34... hxg6
{[%clk 0:00:09.5]} 35. Rf4 {[%clk 0:00:13.1]} 35... Be5 {[%clk 0:00:09]} 36. Rf3
{[%clk 0:00:11.5]} 36... Re8 {[%clk 0:00:08.6]} 37. Qe2 {[%clk 0:00:11.3]} 37...
Qb4 {[%clk 0:00:07.6]} 38. Kg2 {[%clk 0:00:09]} 38... Qa3 {[%clk 0:00:06.7]} 39.
Qd3 {[%clk 0:00:09.2]} 39... Qa1 {[%clk 0:00:05.3]} 40. Qxg6 {[%clk 0:00:09.3]}
40... Re7 {[%clk 0:00:02.5]} 41. Qh7 {[%clk 0:00:08.3]} 41... Bg7 {[%clk
0:00:01.8]} 42. Bc2 {[%clk 0:00:08.3]} 42... Qe5 {[%clk 0:00:01.9]} 43. Re3
{[%clk 0:00:07.9]} 43... Qf6 {[%clk 0:00:01.2]} 44. Rf3 {[%clk 0:00:06.6]} 44...
Qe5 {[%clk 0:00:01.3]} 45. Bf5 {[%clk 0:00:06.9]} 45... Bxf5 {[%clk 0:00:01.4]}
46. Qxf5 {[%clk 0:00:07.6]} 46... Qe4 {[%clk 0:00:02]} 47. Qc8+ {[%clk
0:00:06.6]} 47... Re8 {[%clk 0:00:02.5]} 48. Qxc7 {[%clk 0:00:07.3]} 48... Re7
{[%clk 0:00:02.9]} 49. Qd8+ {[%clk 0:00:07]} 49... Re8 {[%clk 0:00:03]} 50.
Qxd6+ {[%clk 0:00:07.9]} 50... Kg8 {[%clk 0:00:03.7]} 51. Qc7 {[%clk 0:00:06.7]}
51... Be5 {[%clk 0:00:03.4]} 52. Qxf7+ {[%clk 0:00:06.5]} 52... Kh8 {[%clk
0:00:03.5]} 53. Qxe8+ {[%clk 0:00:07.4]} 1-0

[Event "Early-Titled-Tuesday-Blitz-September-05-2023"]
[Site "Chess.com"]
[Date "2023.09.05"]
[Round "1"]
[White "pirulillo"]
[Black "Markov_Mikhail"]
[Result "0-1"]
[WhiteElo "2290"]
[BlackElo "2620"]
[TimeControl "180+1"]
[EndTime "8:08:02 PDT"]
[Termination "Markov_Mikhail won by resignation"]

1. e4 {[%clk 0:02:59.8]} 1... c5 {[%clk 0:02:58.6]} 2. Nf3 {[%clk 0:02:59]} 2...
d6 {[%clk 0:02:56.1]} 3. d4 {[%clk 0:02:57.9]} 3... cxd4 {[%clk 0:02:52.3]} 4.
Nxd4 {[%clk 0:02:58.5]} 4... Nf6 {[%clk 0:02:53.2]} 5. Nc3 {[%clk 0:02:58]} 5...
a6 {[%clk 0:02:54]} 6. Be2 {[%clk 0:02:57.9]} 6... e5 {[%clk 0:02:53.5]} 7. Nb3
{[%clk 0:02:57.9]} 7... Be7 {[%clk 0:02:52.9]} 8. Be3 {[%clk 0:02:58.2]} 8...
Be6 {[%clk 0:02:51.8]} 9. Nd5 {[%clk 0:02:56.5]} 9... Nxd5 {[%clk 0:02:49.4]}
10. exd5 {[%clk 0:02:52.6]} 10... Bf5 {[%clk 0:02:50.3]} 11. Qd2 {[%clk
0:02:49.9]} 11... Nd7 {[%clk 0:02:45.6]} 12. Na5 {[%clk 0:02:49.7]} 12... Qc7
{[%clk 0:02:43.1]} 13. c4 {[%clk 0:02:49.2]} 13... O-O {[%clk 0:02:42.9]} 14.
O-O {[%clk 0:02:48.2]} 14... Rae8 {[%clk 0:02:34]} 15. b4 {[%clk 0:02:43.4]}
15... b6 {[%clk 0:02:27.8]} 16. Nc6 {[%clk 0:02:38]} 16... Bf6 {[%clk
0:02:27.1]} 17. a4 {[%clk 0:02:32]} 17... Nb8 {[%clk 0:02:06.8]} 18. Nxb8 {[%clk
0:02:29.7]} 18... Rxb8 {[%clk 0:02:04.7]} 19. a5 {[%clk 0:02:29.5]} 19... bxa5
{[%clk 0:02:03.8]} 20. Rxa5 {[%clk 0:02:27.6]} 20... Qb7 {[%clk 0:02:03.6]} 21.
c5 {[%clk 0:01:27.1]} 21... Qxb4 {[%clk 0:01:15.2]} 22. Qxb4 {[%clk 0:01:24.4]}
22... Rxb4 {[%clk 0:01:16.1]} 23. c6 {[%clk 0:01:22.6]} 23... Be4 {[%clk
0:00:35.7]} 24. Rc1 {[%clk 0:01:07.8]} 24... Bf5 {[%clk 0:00:13.5]} 25. Rxa6
{[%clk 0:00:55.4]} 25... Bc8 {[%clk 0:00:14.4]} 26. Ra8 {[%clk 0:00:49.8]} 26...
e4 {[%clk 0:00:14]} 27. c7 {[%clk 0:00:41.5]} 27... Bd4 {[%clk 0:00:12.4]} 28.
h3 {[%clk 0:00:26.3]} 28... f5 {[%clk 0:00:11.2]} 29. Rb8 {[%clk 0:00:13.3]}
29... Ra4 {[%clk 0:00:09.6]} 30. Bb5 {[%clk 0:00:12.4]} 30... Bxe3 {[%clk
0:00:08.6]} 31. fxe3 {[%clk 0:00:11.6]} 31... Ra7 {[%clk 0:00:09.2]} 32. Kh2
{[%clk 0:00:06.6]} 32... Kf7 {[%clk 0:00:09.3]} 33. Bc6 {[%clk 0:00:03.8]} 33...
Ke7 {[%clk 0:00:09.3]} 34. Bb5 {[%clk 0:00:03.7]} 34... g5 {[%clk 0:00:09.4]}
35. g4 {[%clk 0:00:03.3]} 35... f4 {[%clk 0:00:09.7]} 36. exf4 {[%clk
0:00:03.7]} 36... gxf4 {[%clk 0:00:10.6]} 37. Re1 {[%clk 0:00:04.2]} 37... e3
{[%clk 0:00:11.2]} 38. Kg2 {[%clk 0:00:04.6]} 38... Rxc7 {[%clk 0:00:11.4]} 39.
Kf3 {[%clk 0:00:04.7]} 39... Bxg4+ {[%clk 0:00:12]} 40. hxg4 {[%clk 0:00:04.4]}
40... Rxb8 {[%clk 0:00:12.9]} 41. Bc6 {[%clk 0:00:04.8]} 41... Rb4 {[%clk
0:00:13.4]} 42. Rh1 {[%clk 0:00:05.5]} 42... Kf6 {[%clk 0:00:13.3]} 43. Rh6+
{[%clk 0:00:05.7]} 43... Kg7 {[%clk 0:00:13.7]} 44. Rxd6 {[%clk 0:00:04.6]}
44... Re7 {[%clk 0:00:14.3]} 45. Rd7 {[%clk 0:00:03.5]} 45... Kf6 {[%clk
0:00:14.3]} 46. d6 {[%clk 0:00:02.9]} 46... Rxd7 {[%clk 0:00:14.1]} 47. Bxd7
{[%clk 0:00:03.8]} 47... Ke5 {[%clk 0:00:14.7]} 48. Bf5 {[%clk 0:00:02.7]} 48...
Kxd6 {[%clk 0:00:15.1]} 49. Bd3 {[%clk 0:00:02.3]} 49... Ke5 {[%clk 0:00:16]}
50. g5 {[%clk 0:00:02.3]} 50... Rb2 {[%clk 0:00:16.7]} 51. Bxh7 {[%clk
0:00:02.4]} 51... Rf2+ {[%clk 0:00:17.1]} 52. Kg4 {[%clk 0:00:03.3]} 52... e2
{[%clk 0:00:17.3]} 53. g6 {[%clk 0:00:03.6]} 53... e1=Q {[%clk 0:00:17.5]} 0-1

[Event "Early-Titled-Tuesday-Blitz-September-05-2023"]
[Site "Chess.com"]
[Date "2023.09.05"]
[Round "1"]
[White "OlaaLa"]
[Black "vovachesss"]
[Result "0-1"]
[WhiteElo "2433"]
[BlackElo "2787"]
[TimeControl "180+1"]
[EndTime "8:08:03 PDT"]
[Termination "vovachesss won by resignation"]

1. c4 {[%clk 0:02:58.5]} 1... b6 {[%clk 0:02:52.7]} 2. e4 {[%clk 0:02:52.1]}
2... Bb7 {[%clk 0:02:52.7]} 3. Nc3 {[%clk 0:02:52.7]} 3... Nf6 {[%clk
0:02:51.5]} 4. d3 {[%clk 0:02:53.1]} 4... e5 {[%clk 0:02:46.9]} 5. g3 {[%clk
0:02:50.3]} 5... Nc6 {[%clk 0:02:47.1]} 6. Bg2 {[%clk 0:02:50.6]} 6... Bc5
{[%clk 0:02:47.6]} 7. Nge2 {[%clk 0:02:50]} 7... O-O {[%clk 0:02:48]} 8. O-O
{[%clk 0:02:50.1]} 8... Re8 {[%clk 0:02:48.6]} 9. h3 {[%clk 0:02:50.2]} 9... Nd4
{[%clk 0:02:48.1]} 10. Be3 {[%clk 0:02:49.2]} 10... Nxe2+ {[%clk 0:02:38.6]} 11.
Qxe2 {[%clk 0:02:44.1]} 11... d6 {[%clk 0:02:39.1]} 12. a3 {[%clk 0:02:41.5]}
12... a5 {[%clk 0:02:39]} 13. Rab1 {[%clk 0:02:38.2]} 13... a4 {[%clk
0:02:23.9]} 14. g4 {[%clk 0:02:31.6]} 14... Nd7 {[%clk 0:02:16.9]} 15. Qc2
{[%clk 0:02:09.5]} 15... Bc6 {[%clk 0:02:11.4]} 16. Ne2 {[%clk 0:02:07.1]} 16...
Bxe3 {[%clk 0:01:33.6]} 17. fxe3 {[%clk 0:02:08]} 17... Qg5 {[%clk 0:01:33.4]}
18. Rf3 {[%clk 0:02:03.4]} 18... Nf8 {[%clk 0:01:18.7]} 19. Ng3 {[%clk
0:01:55.2]} 19... Ng6 {[%clk 0:01:15.1]} 20. Nf5 {[%clk 0:01:50.9]} 20... Nh4
{[%clk 0:01:06.2]} 21. Nxh4 {[%clk 0:01:50.4]} 21... Qxh4 {[%clk 0:01:07.1]} 22.
Rbf1 {[%clk 0:01:46.5]} 22... Re7 {[%clk 0:00:50.5]} 23. Qe2 {[%clk 0:01:37.2]}
23... Rf8 {[%clk 0:00:45.5]} 24. Rf5 {[%clk 0:01:36.8]} 24... g6 {[%clk
0:00:43.5]} 25. Rf6 {[%clk 0:01:32.9]} 25... Bd7 {[%clk 0:00:25.6]} 26. d4
{[%clk 0:01:06.9]} 26... Be6 {[%clk 0:00:20.5]} 27. d5 {[%clk 0:01:05.3]} 27...
Bd7 {[%clk 0:00:20.8]} 28. Qf3 {[%clk 0:01:00.7]} 28... Kg7 {[%clk 0:00:20.4]}
29. Rf2 {[%clk 0:00:54.8]} 29... Be8 {[%clk 0:00:20.1]} 30. Bf1 {[%clk
0:00:53.9]} 30... Rh8 {[%clk 0:00:20.1]} 31. Be2 {[%clk 0:00:25]} 31... h5
{[%clk 0:00:20.1]} 32. Qg2 {[%clk 0:00:18.6]} 32... hxg4 {[%clk 0:00:13]} 33.
Bxg4 {[%clk 0:00:18.2]} 33... Bd7 {[%clk 0:00:12.5]} 34. Bxd7 {[%clk 0:00:17.9]}
34... Rxd7 {[%clk 0:00:13.4]} 35. R6f3 {[%clk 0:00:16.9]} 35... Rh5 {[%clk
0:00:11.8]} 36. Rg3 {[%clk 0:00:17.3]} 36... Qe7 {[%clk 0:00:08.1]} 37. Qf3
{[%clk 0:00:17.2]} 37... Rh4 {[%clk 0:00:05.2]} 38. Rfg2 {[%clk 0:00:17.5]}
38... Rd8 {[%clk 0:00:04.8]} 39. Kf2 {[%clk 0:00:17.5]} 39... Rdh8 {[%clk
0:00:05.1]} 40. Ke2 {[%clk 0:00:18]} 40... Qf6 {[%clk 0:00:03.8]} 41. Qxf6+
{[%clk 0:00:16.4]} 41... Kxf6 {[%clk 0:00:04.7]} 42. Kd3 {[%clk 0:00:17.1]}
42... Kg7 {[%clk 0:00:04.7]} 43. Rh2 {[%clk 0:00:17.2]} 43... R8h6 {[%clk
0:00:04.1]} 44. Rf3 {[%clk 0:00:14.8]} 44... g5 {[%clk 0:00:02.2]} 45. Rhf2
{[%clk 0:00:15.1]} 45... f6 {[%clk 0:00:02.2]} 46. Kc3 {[%clk 0:00:11.9]} 46...
Rxh3 {[%clk 0:00:01.1]} 47. Kb4 {[%clk 0:00:11.5]} 47... g4 {[%clk 0:00:01.6]}
48. Rf5 {[%clk 0:00:11.4]} 48... Rxe3 {[%clk 0:00:01.6]} 49. Kxa4 {[%clk
0:00:11.7]} 49... Rg6 {[%clk 0:00:02]} 50. Rg2 {[%clk 0:00:11]} 50... Rxe4
{[%clk 0:00:02.9]} 51. b3 {[%clk 0:00:10.8]} 51... Rf4 {[%clk 0:00:03.5]} 52.
Rh5 {[%clk 0:00:10.4]} 52... f5 {[%clk 0:00:03.9]} 53. Kb5 {[%clk 0:00:10.3]}
53... g3 {[%clk 0:00:04.2]} 54. Rh3 {[%clk 0:00:09.3]} 54... Rf3 {[%clk
0:00:04]} 55. Kb4 {[%clk 0:00:09.9]} 55... f4 {[%clk 0:00:04.4]} 56. a4 {[%clk
0:00:10.1]} 56... Rf2 {[%clk 0:00:05]} 57. Kb5 {[%clk 0:00:10.1]} 57... Rxg2
{[%clk 0:00:04.7]} 0-1

[Event "Early-Titled-Tuesday-Blitz-September-05-2023"]
[Site "Chess.com"]
[Date "2023.09.05"]
[Round "1"]
[White "DKmirl"]
[Black "Thecourseoisildur"]
[Result "1-0"]
[WhiteElo "2267"]
[BlackElo "2583"]
[TimeControl "180+1"]
[EndTime "8:08:03 PDT"]
[Termination "DKmirl won by checkmate"]

1. d4 {[%clk 0:03:00.9]} 1... Nf6 {[%clk 0:03:00.2]} 2. Nf3 {[%clk 0:02:59.2]}
2... c5 {[%clk 0:02:55.2]} 3. g3 {[%clk 0:02:58.7]} 3... cxd4 {[%clk 0:02:54.3]}
4. Nxd4 {[%clk 0:02:59.6]} 4... e5 {[%clk 0:02:51.5]} 5. Nf3 {[%clk 0:02:58]}
5... d5 {[%clk 0:02:45]} 6. Bg2 {[%clk 0:02:57.2]} 6... Nc6 {[%clk 0:02:35.1]}
7. O-O {[%clk 0:02:57]} 7... Bg4 {[%clk 0:02:34.5]} 8. c3 {[%clk 0:02:36.2]}
8... Bc5 {[%clk 0:02:30.6]} 9. b4 {[%clk 0:02:21.5]} 9... Bb6 {[%clk 0:02:26.9]}
10. b5 {[%clk 0:02:18.7]} 10... Bxf3 {[%clk 0:02:26.6]} 11. Bxf3 {[%clk
0:02:14.6]} 11... Ne7 {[%clk 0:02:24.4]} 12. Bg5 {[%clk 0:02:12.7]} 12... e4
{[%clk 0:02:12.2]} 13. Bg2 {[%clk 0:01:59.8]} 13... Qd7 {[%clk 0:02:06.9]} 14.
Bxf6 {[%clk 0:01:50.7]} 14... gxf6 {[%clk 0:02:05.3]} 15. c4 {[%clk 0:01:51.3]}
15... dxc4 {[%clk 0:01:59.3]} 16. Qxd7+ {[%clk 0:01:44.4]} 16... Kxd7 {[%clk
0:01:59.1]} 17. Bxe4 {[%clk 0:01:38.2]} 17... Rac8 {[%clk 0:01:47.4]} 18. Nc3
{[%clk 0:01:16.7]} 18... Kc7 {[%clk 0:01:46.6]} 19. e3 {[%clk 0:01:07.3]} 19...
Kb8 {[%clk 0:01:43.9]} 20. a4 {[%clk 0:01:01.4]} 20... f5 {[%clk 0:01:43.8]} 21.
Bf3 {[%clk 0:00:55.2]} 21... Ba5 {[%clk 0:01:41.4]} 22. Rac1 {[%clk 0:00:54]}
22... Rhd8 {[%clk 0:01:39.5]} 23. Rc2 {[%clk 0:00:34.3]} 23... Rd3 {[%clk
0:01:32]} 24. Rfc1 {[%clk 0:00:33.6]} 24... Rxc3 {[%clk 0:01:29.9]} 25. Rxc3
{[%clk 0:00:32.6]} 25... Bxc3 {[%clk 0:01:30.8]} 26. Rxc3 {[%clk 0:00:33.3]}
26... Ng6 {[%clk 0:01:29.4]} 27. Bd5 {[%clk 0:00:26.6]} 27... Ne5 {[%clk
0:01:29.1]} 28. f4 {[%clk 0:00:23.8]} 28... Ng4 {[%clk 0:01:27.2]} 29. Rxc4
{[%clk 0:00:18.5]} 29... Rd8 {[%clk 0:01:23.6]} 30. Bxf7 {[%clk 0:00:13.3]}
30... Rd1+ {[%clk 0:01:22.7]} 31. Kg2 {[%clk 0:00:13.4]} 31... Nxe3+ {[%clk
0:01:23.3]} 32. Kh3 {[%clk 0:00:12]} 32... Nxc4 {[%clk 0:01:24.2]} 33. Bxc4
{[%clk 0:00:12.5]} 33... Rd4 {[%clk 0:01:15.5]} 34. Be6 {[%clk 0:00:12.5]} 34...
Rxa4 {[%clk 0:01:15.6]} 35. Bxf5 {[%clk 0:00:12.9]} 35... Rb4 {[%clk 0:01:10.3]}
36. Bxh7 {[%clk 0:00:12.4]} 36... Rxb5 {[%clk 0:01:10.3]} 37. g4 {[%clk
0:00:12.7]} 37... a5 {[%clk 0:01:10.1]} 38. g5 {[%clk 0:00:13]} 38... a4 {[%clk
0:00:41.1]} 39. g6 {[%clk 0:00:13.2]} 39... Rb1 {[%clk 0:00:41.5]} 40. f5 {[%clk
0:00:11.3]} 40... a3 {[%clk 0:00:37]} 41. g7 {[%clk 0:00:09.5]} 41... Rg1 {[%clk
0:00:33]} 42. g8=Q+ {[%clk 0:00:09.1]} 42... Rxg8 {[%clk 0:00:32.5]} 43. Bxg8
{[%clk 0:00:10]} 43... Kc7 {[%clk 0:00:33.2]} 44. Kg4 {[%clk 0:00:08.9]} 44...
Kd6 {[%clk 0:00:33.4]} 45. Kg5 {[%clk 0:00:09.1]} 45... Ke7 {[%clk 0:00:32.4]}
46. Ba2 {[%clk 0:00:09.3]} 46... b5 {[%clk 0:00:32.5]} 47. Kg6 {[%clk
0:00:08.7]} 47... Kf8 {[%clk 0:00:32.4]} 48. h4 {[%clk 0:00:08]} 48... b4 {[%clk
0:00:32.1]} 49. h5 {[%clk 0:00:08.2]} 49... Ke7 {[%clk 0:00:30.1]} 50. h6 {[%clk
0:00:08.1]} 50... Kd6 {[%clk 0:00:28.6]} 51. h7 {[%clk 0:00:08.3]} 51... Kc5
{[%clk 0:00:29.5]} 52. h8=Q {[%clk 0:00:08.5]} 52... Kb5 {[%clk 0:00:30.1]} 53.
Qe5+ {[%clk 0:00:08.6]} 53... Ka4 {[%clk 0:00:30]} 54. Qe8+ {[%clk 0:00:08.4]}
54... Ka5 {[%clk 0:00:30.3]} 55. Qa8+ {[%clk 0:00:08.5]} 55... Kb5 {[%clk
0:00:31.2]} 56. Qb7+ {[%clk 0:00:08.7]} 56... Kc5 {[%clk 0:00:31.6]} 57. Qe7+
{[%clk 0:00:08.5]} 57... Kb5 {[%clk 0:00:32]} 58. Qe2+ {[%clk 0:00:08.1]} 58...
Ka5 {[%clk 0:00:31.4]} 59. Qc2 {[%clk 0:00:08.1]} 59... Kb5 {[%clk 0:00:31.5]}
60. Qc4+ {[%clk 0:00:08.1]} 60... Ka5 {[%clk 0:00:31.9]} 61. f6 {[%clk
0:00:08.6]} 61... Ka4 {[%clk 0:00:32.2]} 62. Qb3+ {[%clk 0:00:07.8]} 62... Kb5
{[%clk 0:00:32.6]} 63. f7 {[%clk 0:00:08.3]} 63... Kc5 {[%clk 0:00:31.5]} 64.
f8=Q+ {[%clk 0:00:09.2]} 64... Kd4 {[%clk 0:00:32]} 65. Qfxb4+ {[%clk
0:00:09.7]} 65... Ke5 {[%clk 0:00:32.8]} 66. Qe6# {[%clk 0:00:09.7]} 1-0

[Event "Early-Titled-Tuesday-Blitz-September-05-2023"]
[Site "Chess.com"]
[Date "2023.09.05"]
[Round "1"]
[White "TERMINATOR_PC"]
[Black "Rud_Makarian"]
[Result "0-1"]
[WhiteElo "2510"]
[BlackElo "2948"]
[TimeControl "180+1"]
[EndTime "8:08:04 PDT"]
[Termination "Rud_Makarian won by resignation"]

1. e4 {[%clk 0:02:09.2]} 1... c5 {[%clk 0:02:50.3]} 2. Nf3 {[%clk 0:02:08.6]}
2... d6 {[%clk 0:02:46]} 3. d4 {[%clk 0:02:08.7]} 3... cxd4 {[%clk 0:02:46.7]}
4. Nxd4 {[%clk 0:02:09.3]} 4... Nf6 {[%clk 0:02:46.9]} 5. Nc3 {[%clk 0:02:09.8]}
5... Nc6 {[%clk 0:02:46.7]} 6. Bg5 {[%clk 0:02:09]} 6... Bd7 {[%clk 0:02:46.6]}
7. Bxf6 {[%clk 0:02:06.5]} 7... gxf6 {[%clk 0:02:45.8]} 8. Qd2 {[%clk
0:02:06.4]} 8... Nxd4 {[%clk 0:02:45.3]} 9. Qxd4 {[%clk 0:02:06.4]} 9... Qa5
{[%clk 0:02:46]} 10. O-O-O {[%clk 0:02:04.6]} 10... Rc8 {[%clk 0:02:45.6]} 11.
a3 {[%clk 0:02:02.5]} 11... h5 {[%clk 0:02:43.5]} 12. h4 {[%clk 0:01:48.5]}
12... Bh6+ {[%clk 0:02:38.7]} 13. Kb1 {[%clk 0:01:48.9]} 13... Qc5 {[%clk
0:02:38.9]} 14. g3 {[%clk 0:01:48]} 14... Qxd4 {[%clk 0:02:38.2]} 15. Rxd4
{[%clk 0:01:48.9]} 15... Bg7 {[%clk 0:02:36.6]} 16. Rb4 {[%clk 0:01:47.4]} 16...
Bc6 {[%clk 0:02:34.2]} 17. Bb5 {[%clk 0:01:44.4]} 17... Kd7 {[%clk 0:02:30.1]}
18. Rd1 {[%clk 0:01:42]} 18... e6 {[%clk 0:02:26.1]} 19. Rbd4 {[%clk 0:01:38.1]}
19... Bf8 {[%clk 0:02:25.3]} 20. Be2 {[%clk 0:01:36.7]} 20... a6 {[%clk
0:02:20.7]} 21. Bf3 {[%clk 0:01:26.5]} 21... Kc7 {[%clk 0:02:19.4]} 22. R4d3
{[%clk 0:01:22]} 22... Be7 {[%clk 0:02:16.4]} 23. Ne2 {[%clk 0:01:21.2]} 23...
b5 {[%clk 0:02:16.2]} 24. Nd4 {[%clk 0:01:21.2]} 24... Bd7 {[%clk 0:02:16.2]}
25. Ne2 {[%clk 0:01:12.4]} 25... Kb6 {[%clk 0:02:15.3]} 26. Nf4 {[%clk 0:01:11]}
26... Rc5 {[%clk 0:02:15]} 27. b4 {[%clk 0:00:56.2]} 27... Re5 {[%clk
0:01:58.1]} 28. Rd4 {[%clk 0:00:37.9]} 28... f5 {[%clk 0:01:53.7]} 29. Nd3
{[%clk 0:00:37.3]} 29... Rxe4 {[%clk 0:01:46.2]} 30. Bxe4 {[%clk 0:00:36.7]}
30... fxe4 {[%clk 0:01:47]} 31. Rxe4 {[%clk 0:00:16.5]} 31... Bc6 {[%clk
0:01:46.8]} 32. Re3 {[%clk 0:00:16.4]} 32... e5 {[%clk 0:01:44.7]} 33. Nb2
{[%clk 0:00:13.6]} 33... f5 {[%clk 0:01:41.4]} 34. c4 {[%clk 0:00:13.7]} 34...
e4 {[%clk 0:01:22.6]} 35. Re2 {[%clk 0:00:09.2]} 35... Rd8 {[%clk 0:01:17.6]}
36. Red2 {[%clk 0:00:08.8]} 36... Kc7 {[%clk 0:01:17.5]} 37. Rd5 {[%clk
0:00:03.2]} 37... Bxd5 {[%clk 0:01:04.3]} 38. Rxd5 {[%clk 0:00:04.1]} 38... Rf8
{[%clk 0:01:04]} 39. cxb5 {[%clk 0:00:04.6]} 39... axb5 {[%clk 0:01:04.8]} 40.
Rxb5 {[%clk 0:00:05.1]} 40... Kc6 {[%clk 0:01:04.7]} 41. Ra5 {[%clk 0:00:05.7]}
41... d5 {[%clk 0:01:02.9]} 42. Na4 {[%clk 0:00:06.2]} 42... f4 {[%clk
0:01:01.9]} 43. Ra6+ {[%clk 0:00:04]} 43... Kd7 {[%clk 0:00:57.6]} 44. Nb6+
{[%clk 0:00:03.9]} 44... Kc6 {[%clk 0:00:43.1]} 45. Na4+ {[%clk 0:00:04.4]}
45... Kb5 {[%clk 0:00:42.1]} 46. Ra5+ {[%clk 0:00:03.9]} 46... Kc4 {[%clk
0:00:42.2]} 47. Nb6+ {[%clk 0:00:04.5]} 47... Kd3 {[%clk 0:00:42]} 48. Rxd5+
{[%clk 0:00:04.1]} 48... Ke2 {[%clk 0:00:41.7]} 49. Re5 {[%clk 0:00:03.4]} 49...
Kxf2 {[%clk 0:00:37.3]} 50. gxf4 {[%clk 0:00:03.6]} 50... Bxh4 {[%clk 0:00:33]}
51. Rxe4 {[%clk 0:00:04.1]} 51... Bg3 {[%clk 0:00:33.5]} 52. Nc4 {[%clk
0:00:03.4]} 52... h4 {[%clk 0:00:33.4]} 53. Ne5 {[%clk 0:00:03.5]} 53... h3
{[%clk 0:00:30.4]} 54. b5 {[%clk 0:00:03.9]} 54... h2 {[%clk 0:00:28.3]} 55.
Ng4+ {[%clk 0:00:04.2]} 55... Kf3 {[%clk 0:00:28.6]} 56. Nxh2+ {[%clk
0:00:02.6]} 56... Kxe4 {[%clk 0:00:28.5]} 57. Ng4 {[%clk 0:00:03.4]} 57... Bxf4
{[%clk 0:00:24.5]} 58. a4 {[%clk 0:00:03.7]} 58... Kd4 {[%clk 0:00:24.5]} 59.
Kb2 {[%clk 0:00:03.3]} 59... Kc4 {[%clk 0:00:24.6]} 60. Nf2 {[%clk 0:00:03.6]}
60... Be5+ {[%clk 0:00:24.3]} 0-1